bitfinex-derivatives/quotes_BTCF0:USTF0_20241231
["timestamp","ask_amount","ask_price","bid_price","bid_amount"]
[1735670080627,0.05314,94226.0,94223.0,0.053142]
[1735670082832,0.3608,94224.0,94189.0,0.053161]
[1735670083030,0.413948,94213.0,94197.0,0.01193383]
[1735670083334,0.413948,94213.0,94200.0,0.08666144]
[1735670083728,0.413948,94213.0,94201.0,0.053154]
[1735670083942,0.413948,94213.0,94198.0,0.19025576]
[1735670084635,0.413948,94213.0,94190.0,0.12696144]
[1735670084932,0.413948,94213.0,94212.0,0.00359207]
[1735670086229,0.413948,94213.0,94212.0,0.00559207]
[1735670086429,0.2185996,94213.0,94212.0,0.00559207]
[1735670086630,0.2185996,94213.0,94212.0,0.05874007]
[1735670087233,0.2185996,94213.0,94212.0,1.55874007]
[1735670087635,0.053148,94213.0,94212.0,0.00559207]
[1735670092428,0.053148,94213.0,94212.0,0.004]
[1735670092936,0.053148,94213.0,94189.0,0.01168]
[1735670092937,0.3,94213.0,94187.0,0.00159257]
[1735670093234,0.053156,94188.0,94187.0,0.00159257]
[1735670094135,0.053156,94188.0,94187.0,0.00859257]
[1735670094335,0.053156,94188.0,94187.0,0.01259257]
[1735670094532,0.3608,94189.0,94165.0,0.053169]
[1735670094735,0.053167,94171.0,94168.0,0.053168]
[1735670095737,0.053171,94162.0,94156.0,0.0387]
[1735670096044,0.053171,94162.0,94149.0,0.0403]
[1735670096045,0.053176,94154.0,94149.0,0.0403]
[1735670096242,0.053176,94154.0,94149.0,0.093478]
[1735670096428,0.053176,94154.0,94151.0,0.05477017]
[1735670096638,0.053176,94154.0,94132.0,0.0393]
[1735670096639,0.3608,94159.0,94138.0,0.053184]
[1735670096928,0.3608,94159.0,94133.0,0.3608]
[1735670096929,0.053182,94144.0,94141.0,0.3608]
[1735670097240,0.053182,94143.0,94141.0,0.3608]
[1735670098043,0.053182,94143.0,94141.0,0.413983]
[1735670098340,0.054182,94143.0,94141.0,0.421983]
[1735670098537,0.054182,94143.0,94141.0,0.3778]
[1735670100344,0.055182,94143.0,94141.0,0.3778]
[1735670100541,0.055182,94143.0,94141.0,0.017]
[1735670101239,0.002,94143.0,94141.0,0.430983]
[1735670101837,0.055182,94143.0,94141.0,0.3778]
[1735670102237,0.055182,94143.0,94141.0,1.8778]
[1735670102435,0.3987,94170.0,94141.0,1.930983]
[1735670102640,0.36148,94170.0,94158.0,0.3608]
[1735670102841,0.3608,94170.0,94160.0,0.08666144]
[1735670103435,0.053169,94166.0,94158.0,0.3608]
[1735670103643,0.053169,94166.0,94165.0,0.053169]
[1735670103948,0.3618,94170.0,94169.0,0.053167]
[1735670104554,0.3608,94170.0,94169.0,0.053167]
[1735670105354,0.3608,94170.0,94169.0,0.058167]
[1735670105645,0.413967,94170.0,94169.0,0.058167]
[1735670107442,0.413967,94170.0,94169.0,0.055167]
[1735670107645,0.3608,94170.0,94169.0,0.058167]
[1735670107849,0.01157631,94174.0,94173.0,0.053165]
[1735670108055,0.053162,94178.0,94169.0,0.3658]
[1735670108249,0.053162,94178.0,94177.0,0.053163]
[1735670110155,0.053164,94174.0,94173.0,0.001]
[1735670110855,0.053165,94173.0,94172.0,0.053165]
[1735670112068,0.053167,94170.0,94169.0,0.3608]
[1735670113070,0.3608,94176.0,94168.0,0.053168]
[1735670113071,0.053167,94169.0,94168.0,0.053168]
[1735670114266,0.053167,94169.0,94168.0,0.055168]
[1735670114462,0.01184285,94176.0,94175.0,0.053164]
[1735670114669,0.3608,94189.0,94168.0,0.3628]
[1735670114867,0.05316,94183.0,94182.0,0.053158]
[1735670115174,0.053167,94173.0,94172.0,0.053165]
[1735670115973,0.053167,94169.0,94168.0,0.418968]
[1735670116167,0.053167,94169.0,94168.0,0.416968]
[1735670116367,0.053165,94174.0,94173.0,0.053164]
[1735670116564,0.053167,94169.0,94168.0,0.3638]
[1735670116771,0.053167,94169.0,94168.0,0.3608]
[1735670117168,0.053167,94169.0,94168.0,0.3628]
[1735670117372,0.054167,94169.0,94168.0,0.3698]
[1735670117970,0.053167,94169.0,94168.0,0.3668]
[1735670118873,0.053167,94169.0,94168.0,0.006]
[1735670119672,0.053167,94169.0,94168.0,0.004]
[1735670120171,0.053167,94169.0,94168.0,0.057168]
[1735670120375,0.053167,94169.0,94168.0,0.058168]
[1735670120768,0.053167,94169.0,94168.0,0.055168]
[1735670120970,0.053167,94169.0,94168.0,0.057168]
[1735670123174,0.06470077,94169.0,94168.0,0.057168]
[1735670123373,0.06470077,94169.0,94168.0,0.004]
[1735670124473,0.053178,94150.0,94149.0,0.090678]
[1735670125475,0.053175,94155.0,94150.0,0.053178]
[1735670125671,0.06498708,94155.0,94154.0,0.053176]
[1735670126272,0.01181208,94155.0,94149.0,0.0435]
[1735670126570,0.053178,94150.0,94149.0,0.015]
[1735670126971,0.053178,94150.0,94149.0,0.009]
[1735670127170,0.413978,94150.0,94149.0,0.009]
[1735670127574,0.05318,94146.0,94136.0,0.053186]
[1735670128272,0.05318,94146.0,94133.0,0.0375]
[1735670128481,0.0385,94149.0,94132.0,0.19025576]
[1735670128482,0.0384,94148.0,94132.0,0.19025576]
[1735670128667,0.053188,94133.0,94132.0,0.19025576]
[1735670129072,0.053191,94127.0,94126.0,0.053191]
[1735670130280,0.054191,94127.0,94126.0,0.009]
[1735670130670,0.053198,94115.0,94114.0,0.0015938]
[1735670130878,0.413998,94115.0,94114.0,0.0015938]
[1735670131181,0.3608,94115.0,94100.0,0.1]
[1735670131394,0.053206,94101.0,94100.0,0.1]
[1735670132086,0.053206,94101.0,94100.0,0.153206]
[1735670132280,0.0375,94125.0,94100.0,0.4608]
[1735670132474,0.00956008,94115.0,94114.0,0.006]
[1735670132675,0.3983,94125.0,94114.0,0.006]
[1735670133183,0.3983,94125.0,94108.0,0.3608]
[1735670133184,0.053199,94112.0,94108.0,0.3608]
[1735670133382,0.053199,94112.0,94110.0,0.0532]
[1735670133777,0.053199,94112.0,94111.0,0.0532]
[1735670134084,0.001,94115.0,94114.0,0.055198]
[1735670134285,0.053198,94115.0,94114.0,0.002]
[1735670135684,0.06255917,94115.0,94114.0,0.002]
[1735670135881,0.00936117,94115.0,94114.0,0.053198]
[1735670136081,0.3983,94125.0,94111.0,0.004]
[1735670136275,0.053196,94119.0,94117.0,0.053197]
[1735670136477,0.053196,94119.0,94118.0,1.5]
[1735670136977,0.053196,94118.0,94116.0,0.053197]
[1735670137177,0.053197,94117.0,94116.0,0.053197]
[1735670138674,0.053197,94117.0,94116.0,0.001]
[1735670138882,0.053206,94101.0,94100.0,0.1]
[1735670140489,0.054206,94101.0,94100.0,0.104]
[1735670140684,0.054206,94101.0,94100.0,0.109]
[1735670141281,0.0634682,94101.0,94100.0,0.109]
[1735670143390,0.0634682,94101.0,94100.0,0.107]
[1735670143590,0.0634682,94101.0,94100.0,0.111]
[1735670144991,0.053217,94081.0,94080.0,0.0376]
[1735670145195,0.053217,94080.0,94074.0,0.0385]
[1735670145492,0.053217,94080.0,94079.0,0.00159426]
[1735670146893,0.053217,94080.0,94079.0,0.06081226]
[1735670146894,0.06056968,94080.0,94079.0,0.06081226]
[1735670147287,0.06156968,94080.0,94079.0,0.06381226]
[1735670148491,0.06156968,94080.0,94079.0,0.01059426]
[1735670153599,0.06156968,94080.0,94079.0,0.04959426]
[1735670155094,0.06156968,94080.0,94079.0,0.01059426]
[1735670157787,0.06156968,94080.0,94079.0,0.009]
[1735670157995,0.053225,94067.0,94066.0,0.0399]
[1735670158801,0.3608,94075.0,94056.0,0.0383]
[1735670158802,0.053225,94066.0,94056.0,0.0383]
[1735670158991,0.053231,94057.0,94056.0,0.0383]
[1735670160390,0.053232,94054.0,94053.0,0.0386]
[1735670161304,0.053229,94061.0,94053.0,0.0386]
[1735670161503,0.001,94057.0,94056.0,0.053231]
[1735670161802,0.3608,94087.0,94055.0,0.3608]
[1735670162000,0.053218,94080.0,94079.0,0.053218]
[1735670162301,0.3608,94087.0,94082.0,0.053216]
[1735670162500,0.053215,94084.0,94083.0,0.0403]
[1735670164310,0.053215,94084.0,94083.0,0.093516]
[1735670165102,0.056215,94084.0,94083.0,0.093516]
[1735670165497,0.004,94084.0,94083.0,0.093516]
[1735670166602,0.053216,94083.0,94072.0,0.053222]
[1735670166798,0.3608,94091.0,94073.0,0.0401]
[1735670166799,0.053213,94088.0,94073.0,0.0401]
[1735670167001,0.3608,94091.0,94073.0,0.0401]
[1735670167206,0.053215,94084.0,94083.0,0.001]
[1735670167602,0.053215,94084.0,94083.0,0.003]
[1735670168007,0.053215,94084.0,94083.0,0.002]
[1735670168318,0.053217,94081.0,94080.0,0.053217]
[1735670170811,0.0095796,94084.0,94070.0,0.19025576]
[1735670171118,0.13987844,94080.0,94069.0,0.19025576]
[1735670171312,0.053223,94070.0,94069.0,0.19025576]
[1735670172316,0.053223,94070.0,94069.0,0.005]
[1735670173608,0.053223,94070.0,94069.0,0.007]
[1735670173810,0.054223,94070.0,94069.0,0.007]
[1735670174515,0.054223,94070.0,94066.0,0.19025576]
[1735670174516,0.053224,94068.0,94066.0,0.19025576]
[1735670174711,0.053226,94065.0,94064.0,0.19185025]
[1735670176117,0.053226,94065.0,94064.0,0.00159449]
[1735670176510,0.06170043,94070.0,94064.0,0.00159449]
[1735670177010,0.06170043,94070.0,94069.0,0.053224]
[1735670177623,0.06070043,94070.0,94069.0,0.053224]
[1735670178213,0.06070043,94070.0,94069.0,0.055224]
[1735670178519,0.06170043,94070.0,94069.0,0.060224]
[1735670179016,0.06170043,94070.0,94069.0,0.007]
[1735670180312,0.06170043,94070.0,94069.0,0.060224]
[1735670186720,0.00847643,94070.0,94069.0,0.060224]
[1735670187027,0.053205,94102.0,94088.0,0.053213]
[1735670187028,0.25396943,94092.0,94088.0,0.053213]
[1735670187719,0.06080797,94089.0,94088.0,0.053213]
[1735670188313,0.06280797,94089.0,94088.0,0.053213]
[1735670188527,0.06280797,94089.0,94088.0,0.054213]
[1735670188827,0.06780797,94089.0,94088.0,0.054213]
[1735670189119,0.007,94089.0,94088.0,0.054213]
[1735670189727,0.0015947,94099.0,94088.0,0.354213]
[1735670189920,0.0015947,94099.0,94098.0,0.414007]
[1735670190118,0.25396943,94106.0,94105.0,0.053203]
[1735670190629,0.00766111,94115.0,94103.0,0.3608]
[1735670190928,0.25396943,94121.0,94120.0,0.053195]
[1735670191623,0.053192,94125.0,94120.0,0.053195]
[1735670191816,0.03430645,94139.0,94114.0,0.3608]
[1735670192017,0.00072,94130.0,94122.0,0.3608]
[1735670192221,0.053186,94135.0,94133.0,0.053188]
[1735670194124,0.0098759,94134.0,94133.0,0.053188]
[1735670194424,0.053193,94124.0,94123.0,0.053193]
[1735670194828,0.00159408,94134.0,94128.0,0.05319]
[1735670194829,0.053189,94130.0,94128.0,0.05319]
[1735670195223,0.00559408,94134.0,94128.0,0.05319]
[1735670195224,0.05319,94129.0,94128.0,0.05319]
[1735670195416,0.0136795,94134.0,94133.0,0.053188]
[1735670195722,0.0176795,94134.0,94133.0,0.054188]
[1735670196223,0.0106795,94134.0,94133.0,0.053188]
[1735670196617,0.001,94124.0,94123.0,0.053193]
[1735670197326,0.053189,94131.0,94129.0,0.053189]
[1735670197728,0.0116795,94134.0,94121.0,0.3608]
[1735670197931,0.0156795,94134.0,94125.0,0.053192]
[1735670198223,0.0136795,94134.0,94123.0,0.001]
[1735670198432,0.053193,94124.0,94123.0,0.001]
[1735670198620,0.053205,94103.0,94102.0,0.053204]
[1735670199127,0.3608,94112.0,94091.0,0.3608]
[1735670199323,0.053203,94106.0,94091.0,0.3608]
[1735670199829,0.0532,94111.0,94108.0,0.053202]
[1735670200128,0.053201,94110.0,94108.0,0.053202]
[1735670201625,0.004,94110.0,94109.0,0.053201]
[1735670202327,0.057201,94110.0,94109.0,0.053201]
[1735670203028,0.056201,94110.0,94109.0,0.053201]
[1735670203433,0.003,94110.0,94109.0,0.053201]
[1735670204023,0.005,94110.0,94109.0,0.053201]
[1735670204321,0.006,94110.0,94109.0,0.092201]
[1735670204728,0.00820356,94117.0,94116.0,0.053197]
[1735670204926,0.053193,94124.0,94116.0,0.413997]
[1735670205325,0.0373,94125.0,94117.0,0.053197]
[1735670205542,0.053196,94119.0,94117.0,0.053197]
[1735670206026,0.04599875,94125.0,94110.0,0.0404]
[1735670206228,0.053202,94109.0,94108.0,0.053201]
[1735670206729,0.3608,94117.0,94107.0,0.3608]
[1735670206730,0.053202,94108.0,94107.0,0.3608]
[1735670206920,0.053212,94090.0,94089.0,0.3608]
[1735670207526,0.053208,94098.0,94083.0,0.053216]
[1735670207730,0.0379,94099.0,94083.0,0.053216]
[1735670207731,0.053215,94084.0,94083.0,0.053216]
[1735670208932,0.054215,94084.0,94083.0,0.062216]
[1735670209728,0.054215,94084.0,94083.0,0.066216]
[1735670211829,0.054215,94084.0,94083.0,0.013]
[1735670212321,0.05322,94075.0,94074.0,0.00159448]
[1735670212529,0.41402,94075.0,94074.0,0.00159448]
[1735670213528,0.05322,94075.0,94074.0,0.00159448]
[1735670213726,0.05422,94075.0,94074.0,0.00759448]
[1735670214123,0.05522,94075.0,94074.0,0.00959448]
[1735670214634,0.053232,94055.0,94047.0,0.053236]
[1735670214829,0.053234,94051.0,94050.0,0.053234]
[1735670216929,0.053236,94048.0,94047.0,0.001]
[1735670217337,0.053238,94043.0,94042.0,0.00159503]
[1735670220134,0.054238,94043.0,94042.0,0.00459503]
[1735670220847,0.055238,94043.0,94042.0,0.00459503]
[1735670223437,0.054238,94043.0,94042.0,0.00159503]
[1735670223737,0.055238,94043.0,94042.0,0.00159503]
[1735670225436,0.054238,94043.0,94042.0,0.00359503]
[1735670229031,0.06189851,94051.0,94042.0,0.00359503]
[1735670229232,0.053238,94044.0,94043.0,0.3608]
[1735670230349,0.053238,94043.0,94042.0,0.00359503]
[1735670231645,0.054238,94043.0,94042.0,0.00459503]
[1735670231850,0.054238,94043.0,94042.0,0.00259503]
[1735670232744,0.054238,94043.0,94042.0,0.00459503]
[1735670235542,0.053241,94036.0,94035.0,0.35920497]
[1735670236249,0.053247,94025.0,94016.0,0.03959543]
[1735670236546,0.053247,94025.0,94017.0,0.053251]
[1735670237245,0.053247,94025.0,94016.0,0.03959543]
[1735670237551,0.054247,94025.0,94024.0,0.3618]
[1735670239045,0.054247,94025.0,94024.0,0.3648]
[1735670240146,0.054247,94025.0,94024.0,0.004]
[1735670240543,0.05325,94017.0,94016.0,0.00159543]
[1735670241346,0.053257,94006.0,94005.0,0.453157]
[1735670242850,0.054257,94006.0,94005.0,0.453157]
[1735670244041,0.055257,94006.0,94005.0,0.453157]
[1735670245444,0.002,94006.0,94005.0,0.453157]
[1735670245744,0.0015957,94034.0,94033.0,0.053242]
[1735670245945,0.0548367,94034.0,94033.0,0.414042]
[1735670246542,0.00861682,94053.0,94033.0,0.6608]
[1735670246749,0.00861682,94053.0,94052.0,0.3608]
[1735670246750,0.05323,94053.0,94052.0,0.3608]
[1735670248851,0.06183214,94053.0,94052.0,0.3608]
[1735670249548,0.06683214,94053.0,94052.0,0.3618]
[1735670249949,0.06983214,94053.0,94052.0,0.3618]
[1735670250262,0.07083214,94053.0,94052.0,0.3618]
[1735670250764,0.07083214,94053.0,94046.0,0.19025576]
[1735670250970,0.07083214,94053.0,94041.0,0.2536253]
[1735670250971,0.053232,94047.0,94041.0,0.23209494]
[1735670251158,0.053239,94035.0,94034.0,0.31672707]
[1735670251564,0.053239,94035.0,94027.0,0.37382308]
[1735670251774,0.053243,94028.0,94027.0,0.37382308]
[1735670251972,0.053248,94020.0,94019.0,0.00056]
[1735670252163,0.053255,94007.0,94006.0,0.04]
[1735670252681,0.053256,94006.0,94005.0,0.3608]
[1735670252973,0.053259,94001.0,93996.0,0.3608]
[1735670253575,0.046259,94001.0,93996.0,0.3608]
[1735670254166,0.047259,94001.0,94000.0,0.107]
[1735670255269,0.05651094,94001.0,94000.0,0.107]
[1735670255673,0.05751094,94001.0,94000.0,0.107]
[1735670255868,0.053268,93984.0,93983.0,0.3608]
[1735670256973,0.054268,93984.0,93983.0,0.3608]
[1735670257381,0.055268,93984.0,93983.0,0.3618]
[1735670258670,0.055268,93984.0,93983.0,0.001]
[1735670258984,0.1824392,93984.0,93983.0,0.001]
[1735670259383,0.1824392,93984.0,93965.0,0.3608]
[1735670259384,0.19063701,93984.0,93965.0,0.3608]
[1735670259676,0.053276,93970.0,93965.0,0.3608]
[1735670260780,0.053271,93966.0,93965.0,0.3608]
[1735670261970,0.1271712,93969.0,93965.0,0.3608]
[1735670262266,0.002,93970.0,93968.0,0.05327]
[1735670262666,0.0092394,93970.0,93968.0,0.05327]
[1735670262870,0.053268,93973.0,93969.0,1.5]
[1735670263090,0.053268,93973.0,93968.0,0.05327]
[1735670263372,0.001,93970.0,93969.0,0.05327]
[1735670264173,0.09569742,93990.0,93965.0,0.3608]
[1735670264374,0.06229398,93990.0,93989.0,0.3608]
[1735670264679,0.00903598,93990.0,93989.0,0.3608]
[1735670264877,0.00159643,94003.0,93989.0,0.3608]
[1735670264878,0.053253,93999.0,93993.0,0.053256]
[1735670265078,0.053253,93999.0,93998.0,0.3608]
[1735670265383,0.01066307,94003.0,93998.0,0.3608]
[1735670265582,0.00159643,94003.0,94001.0,0.3608]
[1735670265880,0.05484743,94003.0,94001.0,0.3608]
[1735670267071,0.05784743,94003.0,94001.0,0.3608]
[1735670268771,0.05684743,94003.0,94001.0,0.3608]
[1735670268971,0.05984743,94003.0,94001.0,0.3608]
[1735670270186,0.00659643,94003.0,94001.0,0.414051]
[1735670271387,0.00459643,94003.0,94001.0,0.416051]
[1735670272083,0.00159643,94003.0,94001.0,0.415051]
[1735670272279,0.053248,94007.0,94001.0,0.3618]
[1735670272588,0.21228169,94007.0,94003.0,0.05325]
[1735670272790,0.21228169,94007.0,94004.0,0.05325]
[1735670273184,0.053251,94002.0,94001.0,0.3618]
[1735670275590,0.053251,94002.0,94001.0,0.3608]
[1735670276087,0.0878772,94005.0,94001.0,0.3608]
[1735670276397,0.055251,94002.0,94001.0,0.3608]
[1735670277790,0.002,94002.0,94001.0,0.414052]
[1735670278600,0.053251,94002.0,94001.0,0.3608]
[1735670278896,0.056251,94002.0,94001.0,0.3608]
[1735670279797,0.056251,94002.0,94001.0,0.3628]
[1735670280295,0.055251,94002.0,94001.0,0.3608]
[1735670280498,0.056251,94002.0,94001.0,0.3608]
[1735670281891,0.054251,94002.0,94001.0,0.414052]
[1735670282086,0.057251,94002.0,94001.0,0.414052]
[1735670282287,0.004,94002.0,94001.0,0.414052]
[1735670282995,0.1588117,94007.0,94001.0,0.414052]
[1735670283201,0.1588117,94007.0,94006.0,0.414049]
[1735670284287,0.00906574,94011.0,94010.0,0.053246]
[1735670284494,0.053243,94016.0,94015.0,0.053244]
[1735670284803,0.053243,94016.0,94015.0,0.414044]
[1735670286002,0.06246811,94016.0,94015.0,0.414044]
[1735670287096,0.06246811,94016.0,94015.0,0.415044]
[1735670287292,0.06246811,94016.0,94015.0,0.3618]
[1735670287493,0.053241,94020.0,94019.0,0.05324]
[1735670287698,0.1588117,94022.0,94019.0,0.05324]
[1735670287699,0.1588117,94022.0,94021.0,0.05324]
[1735670288303,0.16813974,94022.0,94021.0,0.05324]
[1735670288503,0.00932804,94022.0,94021.0,0.05324]
[1735670288705,0.053239,94023.0,94019.0,0.3608]
[1735670289010,0.053239,94023.0,94022.0,0.05324]
[1735670289497,0.053236,94029.0,94028.0,0.053236]
[1735670289695,0.053236,94029.0,94028.0,0.414036]
[1735670289898,0.15898712,94029.0,94028.0,0.414036]
[1735670290298,0.22297129,94046.0,94028.0,0.6608]
[1735670290499,0.22297129,94046.0,94045.0,0.774827]
[1735670291496,0.00926815,94047.0,94046.0,0.053226]
[1735670291701,0.053225,94048.0,94045.0,0.7222]
[1735670291901,0.053225,94048.0,94047.0,0.053226]
[1735670292093,0.053222,94054.0,94045.0,0.7222]
[1735670292306,0.053222,94054.0,94053.0,0.3608]
[1735670293201,0.27619329,94054.0,94053.0,0.3608]
[1735670293402,0.28119329,94054.0,94053.0,0.3608]
[1735670293909,0.29019329,94054.0,94053.0,0.414022]
[1735670294306,0.29019329,94054.0,94053.0,0.3608]
[1735670294704,0.067222,94054.0,94053.0,0.3608]
[1735670294899,0.063222,94054.0,94053.0,0.414022]
[1735670295599,0.062222,94054.0,94053.0,0.414022]
[1735670295804,0.055222,94054.0,94053.0,0.414022]
[1735670295997,0.056222,94054.0,94053.0,0.414022]
[1735670296197,0.056222,94054.0,94053.0,0.3608]
[1735670296397,0.053222,94054.0,94053.0,0.3608]
[1735670296604,0.056222,94054.0,94053.0,0.3608]
[1735670297306,0.056222,94054.0,94053.0,0.236]
[1735670297506,0.053237,94026.0,94025.0,0.3608]
[1735670297709,0.053236,94029.0,94017.0,0.3608]
[1735670297899,0.053242,94018.0,94017.0,0.30870801]
[1735670298094,0.053242,94018.0,94007.0,0.3608]
[1735670298299,0.053246,94010.0,94007.0,0.3608]
[1735670299005,0.053246,94010.0,94009.0,0.05484256]
[1735670299301,0.002,94026.0,94009.0,0.00159556]
[1735670299494,0.053241,94020.0,94016.0,0.3608]
[1735670299699,0.002,94018.0,94017.0,0.053243]
[1735670300202,0.053238,94025.0,94023.0,0.053239]
[1735670300502,0.053238,94025.0,94024.0,0.3608]
[1735670300709,0.00924338,94026.0,94025.0,0.053238]
[1735670300902,0.0384,94047.0,94024.0,0.3608]
[1735670300903,0.0384,94047.0,94031.0,0.053234]
[1735670301102,0.0384,94047.0,94036.0,0.3608]
[1735670301103,0.053231,94037.0,94036.0,0.3608]
[1735670301295,0.1905764,94038.0,94036.0,0.3608]
[1735670301500,0.1281764,94038.0,94037.0,0.053231]
[1735670301709,0.22456717,94049.0,94048.0,0.053225]
[1735670301910,0.22297129,94049.0,94048.0,0.414025]
[1735670302205,0.053225,94048.0,94047.0,0.3608]
[1735670302801,0.053222,94054.0,94048.0,0.001]
[1735670303001,0.053222,94054.0,94052.0,0.053223]
[1735670303411,0.053214,94068.0,94048.0,0.003]
[1735670303709,0.053224,94049.0,94048.0,0.003]
[1735670303905,0.053224,94049.0,94048.0,0.056225]
[1735670304113,0.37003403,94066.0,94048.0,0.003]
[1735670304304,0.37003403,94066.0,94052.0,0.053222]
[1735670304503,0.053222,94053.0,94052.0,0.053222]
[1735670305598,0.37103403,94066.0,94047.0,0.039]
[1735670305808,0.053221,94055.0,94054.0,0.3608]
[1735670308314,0.059221,94055.0,94054.0,0.3608]
[1735670310008,0.06859754,94055.0,94054.0,0.3608]
[1735670314414,0.053226,94047.0,94046.0,0.3608]
[1735670318706,0.00937654,94055.0,94046.0,0.3608]
[1735670318913,0.091611,94073.0,94046.0,0.3608]
[1735670318914,0.0378,94069.0,94054.0,0.3608]
[1735670319205,0.053217,94063.0,94062.0,0.414017]
[1735670320228,0.053217,94063.0,94062.0,0.3608]
[1735670320615,0.059217,94063.0,94062.0,0.3608]
[1735670320919,0.062217,94063.0,94062.0,0.3608]
[1735670321818,0.062217,94063.0,94062.0,0.414017]
[1735670322011,0.009,94063.0,94062.0,0.414017]
[1735670322611,0.22297129,94082.0,94062.0,0.414017]
[1735670322818,0.22297129,94082.0,94076.0,0.053209]
[1735670323016,0.053209,94077.0,94076.0,0.053209]
[1735670324323,0.062209,94077.0,94076.0,0.053209]
[1735670324730,0.068209,94077.0,94076.0,0.053209]
[1735670326123,0.056209,94077.0,94076.0,0.055209]
[1735670326528,0.003,94077.0,94076.0,0.055209]
[1735670326918,0.001,94077.0,94076.0,0.3]
[1735670327124,0.22297129,94097.0,94096.0,0.053198]
[1735670327329,0.27616929,94097.0,94096.0,0.413998]
[1735670327627,0.27616929,94097.0,94096.0,0.3608]
[1735670327936,0.28571049,94097.0,94096.0,0.3608]
[1735670328122,0.053205,94085.0,94083.0,0.053205]
[1735670328428,0.053205,94085.0,94084.0,0.053205]
[1735670329330,0.18694677,94100.0,94078.0,0.3608]
[1735670329331,0.09788622,94100.0,94078.0,0.3608]
[1735670329526,0.053203,94088.0,94079.0,0.3608]
[1735670329731,0.053207,94080.0,94079.0,0.3608]
[1735670330826,0.053213,94070.0,94069.0,0.3608]
[1735670331729,0.15399106,94070.0,94069.0,0.3608]
[1735670331923,0.15399106,94070.0,94069.0,0.414014]
[1735670332626,0.053213,94070.0,94069.0,0.415014]
[1735670333729,0.053213,94070.0,94069.0,0.416014]
[1735670334730,0.053213,94070.0,94069.0,0.415814]
[1735670335530,0.22297129,94072.0,94071.0,0.053212]
[1735670335732,0.27618329,94072.0,94071.0,0.053212]
[1735670336735,0.27718329,94072.0,94071.0,0.053212]
[1735670337439,0.22397129,94072.0,94071.0,0.053212]
[1735670338238,0.001,94072.0,94071.0,0.053212]
[1735670340338,0.001,94072.0,94071.0,0.414012]
[1735670340638,0.01093945,94100.0,94094.0,0.053199]
[1735670340846,0.01093945,94100.0,94099.0,0.413997]
[1735670342150,0.00971858,94107.0,94106.0,0.053193]
[1735670342338,0.053191,94110.0,94109.0,0.053191]
[1735670342538,0.053191,94110.0,94109.0,0.413991]
[1735670342734,0.053191,94110.0,94109.0,0.3608]
[1735670342950,0.06304608,94110.0,94109.0,0.3608]
[1735670343535,0.07104608,94110.0,94109.0,0.3618]
[1735670344652,0.053196,94100.0,94099.0,0.3608]
[1735670344856,0.053191,94109.0,94083.0,0.3608]
[1735670344857,0.053205,94084.0,94083.0,0.3608]
[1735670346253,0.053205,94084.0,94083.0,0.004]
[1735670346444,0.3608,94087.0,94061.0,0.36239469]
[1735670346651,0.053217,94063.0,94061.0,0.36239469]
[1735670347254,0.053217,94063.0,94062.0,0.053218]
[1735670347455,0.053215,94067.0,94066.0,0.053215]
[1735670348355,0.3608,94077.0,94062.0,0.053217]
[1735670348356,0.053217,94063.0,94062.0,0.053217]
[1735670349754,0.053213,94071.0,94061.0,0.36239469]
[1735670349755,0.053218,94062.0,94061.0,0.36239469]
[1735670351250,0.053218,94062.0,94061.0,0.36539469]
[1735670351651,0.053218,94062.0,94061.0,0.36839469]
[1735670351858,0.22297129,94065.0,94061.0,0.36839469]
[1735670351859,0.22297129,94065.0,94064.0,0.053216]
[1735670353061,0.22297129,94065.0,94064.0,0.055216]
[1735670353366,0.11458737,94076.0,94072.0,0.053212]
[1735670353552,0.22272058,94093.0,94079.0,0.053207]
[1735670353753,0.22272058,94093.0,94072.0,0.3608]
[1735670353754,0.22272058,94093.0,94092.0,0.414001]
[1735670354261,0.22272058,94093.0,94084.0,0.3608]
[1735670354562,0.053205,94090.0,94089.0,0.053205]
[1735670355062,0.005,94093.0,94084.0,0.3608]
[1735670355265,0.01458453,94093.0,94092.0,0.414004]
[1735670355463,0.005,94093.0,94092.0,0.414004]
[1735670355762,0.006,94093.0,94092.0,0.414004]
[1735670356254,0.059203,94093.0,94092.0,0.414004]
[1735670356455,0.060203,94093.0,94092.0,0.414004]
[1735670356956,0.011,94093.0,94092.0,0.415004]
[1735670357559,0.009,94093.0,94092.0,0.415004]
[1735670358065,0.007,94093.0,94092.0,0.415004]
[1735670358266,0.009,94093.0,94092.0,0.415004]
[1735670360266,0.009,94093.0,94092.0,0.054204]
[1735670360463,0.009,94093.0,94080.0,0.08694677]
[1735670360464,0.053209,94084.0,94076.0,0.053214]
[1735670360666,0.053215,94074.0,94073.0,0.3608]
[1735670361365,0.1092,94083.0,94065.0,0.3608]
[1735670361366,0.053216,94072.0,94065.0,0.3608]
[1735670361563,0.053216,94072.0,94071.0,0.053217]
[1735670362159,0.053219,94068.0,94066.0,0.053219]
[1735670362360,0.053219,94068.0,94065.0,0.3608]
[1735670362561,0.053219,94068.0,94065.0,0.3648]
[1735670362864,0.053216,94073.0,94072.0,0.053216]
[1735670363578,0.0359,94083.0,94068.0,0.053219]
[1735670363758,0.0359,94083.0,94065.0,0.3648]
[1735670363759,0.00965715,94083.0,94082.0,0.053211]
[1735670363954,0.0391,94094.0,94082.0,0.053211]
[1735670364156,0.0391,94094.0,94093.0,0.3608]
[1735670364367,0.053197,94107.0,94106.0,0.053196]
[1735670364566,0.053197,94107.0,94106.0,0.413996]
[1735670364870,0.01120678,94110.0,94109.0,0.053196]